{"text_format":"1","workbook":"xlsx","n_sheets":1,"sheets":["Begrotingsformat SOK"],"not_rendered":{"charts":0,"images":1,"macros":1,"external_links":0,"defined_names":0,"comments":0,"pivot_tables":0},"unopened":[],"bounds":{"document_bytes":16777216,"sheet_cells":100000,"rows_first":2000,"rows_last":500,"rows_between":2000,"halvings":0,"cell_chars":16384,"cell_head_chars":4096},"cells_cut":0,"cells_raw":0,"read":"whole","date_system":"1900"}

{"sheet":"Begrotingsformat SOK","index":0,"n_rows":62,"n_cols":11,"rows_kept":62,"cut":false,"hidden":false,"merged":[[0,0,0,6],[1,8,2,8],[1,10,5,15],[2,1,2,3],[3,1,3,3],[4,1,4,3],[5,1,5,3],[6,1,6,3],[8,7,8,8],[9,7,9,8],[10,7,10,8],[11,7,11,8],[11,10,29,15],[12,7,12,8],[13,7,13,8],[14,7,14,8],[15,7,15,8],[16,7,16,8],[17,7,17,8],[18,7,18,8],[19,7,19,8],[20,7,20,8],[21,7,21,8],[22,7,22,8],[23,7,23,8],[24,7,24,8],[25,7,25,8],[26,7,26,8],[27,7,27,8],[28,7,28,8],[29,7,29,8],[30,7,30,8],[31,7,31,8],[31,10,48,14],[32,7,32,8],[33,7,33,8],[34,7,34,8],[35,7,35,8],[36,7,36,8],[37,7,37,8],[38,7,38,8],[39,7,39,8],[40,7,40,8],[41,7,41,8],[42,7,42,8],[43,7,43,8],[44,7,44,8],[45,7,45,8],[46,7,46,8],[47,7,47,8],[48,7,48,8],[49,7,49,8],[49,10,49,14],[50,3,50,5],[50,7,50,8],[50,10,62,15],[51,3,51,4],[51,7,51,8],[52,3,52,4],[52,7,52,8],[53,3,53,4],[53,7,53,8],[54,3,54,4],[54,7,54,8],[55,3,55,5],[55,7,55,8],[56,3,56,4],[56,7,56,8],[60,3,60,5],[61,3,61,5],[61,8,69,8],[57,3,57,4],[57,7,57,8],[58,3,58,4],[58,7,58,8],[59,3,59,5],[59,7,59,8]]}
["FORMAT BEGROTING SOK",null,null,null,null,null,null,null,null,null,"Invullen begrotingsformat"]
["BASISGEGEVENS",null,null,null,null,null,null,null,"Kolommen H en I worden ingevuld door de beoordelaar bij de provincie Groningen",1,"Basisgegevens                                                                              In grijze vlakken vult u een aantal basisgegevens, de datum waarop het begrotingsformat is ingevuld en door wie."]
["Nummer karakteristiek pand of gemeentelijk monument (indien van toepassing):",null,null,null,null,"Datum begroting: "]
["Naam pand (indien van toepassing):",null,null,null,null,"Ingevuld door: ",null,null,"berekening subsidiabele kosten"]
["Adresgegevens van het pand:",null,null,null,null,null,null,"naam:"]
["Postcode en plaats:",null,null,null,null,null,null,"datum:"]
["Naam aanvrager:"]
[]
["Omschrijving","Aantal uren arbeid","Kosten arbeid per uur (excl. BTW)","Arbeid totaal","Materiaal totaal (excl. BTW)",null,"Totaal","Verklaring/ reden niet subsidiabel                                              (in te vullen door de beoordelaar)"]
[]
["Omschrijving werkzaamheden regulier onderhoud 21% BTW tarief"]
[null,0,0,{"$f":"B12*C12","v":0},0,null,{"$f":"SUM(D12+E12)","v":0},null,null,2,"Het invullen van de onderhoudswerkzaamheden waarvoor u subsidie voor aanvraagt, 21% BTW                                                                                           In kolom A vult u een korte omschrijving in van het werk zoals dit in de offerte/factuur is vermeld.                                                 In kolom B geeft u aan hoeveel uren er in de offerte/factuur voor dat werk gerekend worden.                                                       In kolom C geeft u aan wat het werk per uur kost.                    Kolom D rekent dan automatisch het totaal uit van het aantal uren x werkloon per uur.                                                                  In kolom E vult u in hoeveel materiaalkosten gelden voor die specifieke werkzaamheden.                                                Totaal en subtotaal worden automatisch uitgerekend. Indien het gaat om bijvoorbeeld posten als 'houtrotherstel' waarbij geen specieficatie gemaakt kan worden in uren en materialen, voer dan het totaal op als materiaalkosten.       "]
[null,0,0,0,0,null,{"$f":"D13+E13","v":0}]
[null,0,0,0,0,null,0]
[null,0,0,0,0,null,0]
[null,0,0,0,0,null,0]
[null,0,0,0,0,null,0]
[null,0,0,0,0,null,0]
[null,0,0,0,0,null,0]
[null,0,0,0,0,null,0]
[null,0,0,0,0,null,0]
[null,0,0,0,0,null,0]
[null,0,0,0,0,null,0]
[null,0,0,0,0,null,0]
[null,0,0,0,0,null,0]
[null,0,0,0,0,null,0]
[null,0,0,0,0,null,0]
[]
["Subtotaal",null,null,{"$f":"SUM(D12:D27)","v":0},{"$f":"SUM(E12:E27)","v":0},null,{"$f":"SUM(G12:G27)","v":0}]
[]
["Omschrijving werkzaamheden regulier onderhoud 9% BTW tarief"]
[null,0,0,{"$f":"B32*C32","v":0},0,null,{"$f":"D32+E32","v":0},null,null,3,"Het invullen van de onderhoudswerkzaamheden waarvoor u subsidie aanvraagt, 9%  BTW                                                            Zie stap 2. Let op de verschillen in BTW tarief. Voor de meeste werkzaamheden geldt een BTW tarief van 21%. Voor een aantal werkzaamheden geldt een uitzondering van 9% BTW. Kijk hiervoor goed op de offerte/factuur welk BTW tarief geldt voor de werkzaamheden.  Indien u hier nog vragen over heeft kunt u contact opnemen met het subsidieteam.   "]
[null,0,0,0,0,null,0]
[null,0,0,0,0,null,0]
[null,0,0,0,0,null,0]
[null,0,0,0,0,null,0]
[null,0,0,0,0,null,0]
[null,0,0,0,0,null,0]
[null,0,0,0,0,null,0]
[null,0,0,0,0,null,0]
[null,0,0,0,0,null,0]
[null,0,0,0,0,null,0]
[null,0,0,0,0,null,0]
[null,0,0,0,0,null,0]
[null,0,0,0,0,null,0]
[null,0,0,0,0,null,0]
[null,0,0,0,0,null,0]
[]
["Subtotaal",null,null,{"$f":"SUM(D32:D47)","v":0},{"$f":"SUM(E32:E47)","v":0},null,{"$f":"SUM(G32:G47)","v":0}]
[]
[null,null,null,"SUBTOTAAL van  werkzaamheden ",null,null,{"$f":"SUM(G29+G49)","v":0},null,null,4," Extra kosten Na het subtotaal van alle werkzaamheden is het nog mogelijk kosten op te voeren voor de omgevingsvergunning (Leges), kosten voor de monumentenwacht en advieskosten voor de subsidieaanvraag. Let er op dat de kosten voor Leges niet meer dan 3% van het subtotaal van alle werkzaamheden is, en de advieskosten niet meer dan 8%. Het opgeven van deze kosten is een mogelijkheid, dus niet verplicht. Kosten onvoorzien zijn max. 5% en kan alleen worden opgegeven als er wordt aangevraagd voordat de werkzaamheden zijn gestart, dus op basis van offerte(s)."]
[null,null,null,"Legeskosten",null,"max 3 %",0]
[null,null,null,"Kosten monumentenwacht",null,null,0]
[null,null,null,"Onvoorzien",null,"max 5% ",0]
[null,null,null,"Advieskosten aanvraag",null,"max 8%",0]
[null,null,null,"Totaal exlusief BTW (21% tarief)",null,null,{"$f":"SUM(G29+G52+G54+G55)","v":0}]
[null,null,null,"Totaal exlusief BTW (9% tarief)",null,null,{"$f":"G49","v":0}]
[null,null,null,null,null,"BTW 21%",{"$f":"SUM(G56*0.21)","v":0}]
[null,null,null,null,null,"BTW 9%",{"$f":"SUM(G57*0.09)","v":0}]
[null,null,null,"TOTAAL inclusief BTW",null,null,{"$f":"SUM(G56:G59)+G53","v":0}]
[null,null,null,"Gaat het om een boerderijen met een agrarische functie?",null,null,"Nee"]
[null,null,null,"Maximum mogelijk te ontvangen subsidie:",null,null,{"$f":"IF(G60=0,\" €                                - \",IF(G60<1000,\"0,- minder subsidiabele kosten hebben dan 1.000,- is voor deze subsidie een weigeringsgrond\",IF(G61=\"Nee\",IF(G60/2>=10000,10000,G60/2),IF(G60/2>=20000,20000,G60/2))))","v":" €                                - "},5,"Subtotaal van alle werkzaamheden, de BTW en het totaal inclusief BTW worden automatisch uitgerekend.   "]